[Event "15th Tashkent Open Agzamov 2022"]
[Site "Tashkent"]
[Date "2022.05.10"]
[Round "9.5"]
[White "Utegaliyev, Azamat"]
[Black "Mchedlishvili, Mikheil"]
[Result "0-1"]
[ECO "A25"]
[WhiteElo "2463"]
[BlackElo "2595"]
[Annotator "TA"]
[PlyCount "178"]
[EventDate "2022.05.05"]
[EventType "swiss"]
[EventCountry "UZB"]
[SourceTitle "playchess.com"]
[Source "ChessBase"]
[SourceQuality "1"]
[TimeControl "5400+30"]

{[%evp 19,178,0,10,-14,-14,-10,-20,-54,-42,-50,-43,-45,-37,-62,-18,-57,-43,-85,-65,-69,-65,-56,-17,-80,-78,-84,-81,-72,-72,-66,-70,-54,-67,-99,-70,-66,-72,-65,-70,-100,-96,-113,-78,-78,-78,-85,-79,-79,0,-97,-97,-97,-97,-112,-112,-112,-106,-116,-121,-110,-121,-132,-132,-127,-125,-132,-132,-132,-120,-120,-120,-124,-125,-126,-108,-130,-130,-137,-129,-130,-135,-162,-159,-154,-164,-251,-251,-338,-345,-331,-330,-381,-369,-453,-448,-660,-671,-1560,-1526,-1490,-1469,-1226,-450,-1253,0,-804,-395,-345,-175,-29957,-29960,-29960,-29961,-29960,-311,-29960,-29962,-29963,-29964,-29964,-29967,-29966,-29968,-29968,-29969,-29969,-29971,-29972,-29973,-29973,-29972,-29972,-29973,-29974,-29975,-29976,-29974,-29974,-29975,-29975,-29972,-29972,-29973,-29973,-29971,-29976,-29977,-29977,-29978,-29978,-29979,-29979,-29980,-29981,-29981,-29981,-29982,-29983,-29984,-29987,-29987]} 1. b3 {[%emt 0:01:46]} e5 {[%emt 0:01:14]} 2. Bb2 {[%emt 0:00:26]} Nc6 {[%emt 0:00:27]} 3. c4 {[%emt 0:01:54]} g6 {[%emt 0:05:38]} 4. g3 {[%emt 0:01:51]} Bg7 {[%emt 0:00:43]} 5. Bg2 {[%emt 0:00:06]} Nge7 {[%emt 0:01:09]} 6. Nc3 {[%emt 0:05:15]} O-O {[%emt 0:01:43]} 7. e3 {[%emt 0:00:24]} d6 {[%emt 0:07:20]} 8. Nge2 {[%emt 0:00:54]} Be6 {[%emt 0:02:13]} 9. O-O {[%emt 0:00:54]} d5 {[%emt 0:03:51]} 10. cxd5 {[%emt 0:14:47]} Nxd5 {[%emt 0:00:19]} 11. a3 {[%emt 0:00:19] A25: English Opening vs King's Indian with ...Nc6 but without early d3.} Nxc3 {[%emt 0:07:35]} 12. Bxc3 {[%emt 0:05:55]} Bd5 {[%emt 0:01:37]} 13. e4 {[%emt 0:08:34] The position is equal.} Be6 {[%emt 0:00:18] [#]} 14. f4 $146 {[%emt 0:14:45]} ({Predecessor:} 14. Qc2 Qd6 15. d3 Rfd8 16. Rfd1 a5 17. Qb2 Ra6 18. b4 axb4 19. axb4 Rxa1 20. Rxa1 Qxd3 {1-0 (63) Granda Zuniga,J (2636)-Mamedyarov,S (2733) San Sebastian 2012}) 14... Qd3 {[%emt 0:03:54]} 15. Rf2 {[%emt 0:06:47]} Bg4 {[%emt 0:08:57]} 16. Qe1 {[%emt 0:03:14][%cal Of4f5]} Rad8 {[%emt 0:06:40]} (16... Bxe2 $5 17. Qxe2 Qxe2 18. Rxe2 exf4 19. gxf4 Nd4 $15) 17. Rc1 {[%emt 0:03:31]} Rfe8 {[%emt 0:03:08]} 18. Qf1 {[%emt 0:01:18]} a5 {[%emt 0:03:35]} 19. b4 {[%emt 0:05:06]} axb4 {[%emt 0:05:36] 0x0.0026dcbc03a5dp-1022s more active pieces. The white rooks are badly placed.} 20. axb4 {[%emt 0:00:04]} h5 {[%emt 0:00:51]} (20... exf4 {is more complex.} 21. gxf4 Qb5 22. Ng3 Qb6) 21. fxe5 {[%emt 0:02:47]} (21. f5 $11 {keeps the balance.}) 21... Bxe2 $17 {[%emt 0:02:52]} ({Much worse is} 21... Nxe5 $6 22. Nf4 Qxf1+ 23. Rfxf1 $11) 22. Qxe2 {[%emt 0:00:03]} Qxe2 {[%emt 0:01:10]} 23. Rxe2 {[%emt 0:00:05]} Bxe5 {[%emt 0:00:12]} 24. Bf1 {[%emt 0:08:11]} Re7 {[%emt 0:05:00]} 25. b5 {[%emt 0:01:09]} Bxc3 {[%emt 0:01:56]} 26. bxc6 {[%emt 0:00:09]} Bxd2 {[%emt 0:06:39]} 27. Rc2 {[%emt 0:02:50]} Ba5 {[%emt 0:00:39]} 28. cxb7 {[%emt 0:00:05]} Rb8 {[%emt 0:00:14]} 29. e5 {[%emt 0:03:17]} ({But not} 29. Rc5 $2 Bb6 30. Rec2 Re5 $19) 29... Rxb7 {[%emt 0:00:26]} 30. Re4 {[%emt 0:00:05]} Kg7 {[%emt 0:02:28]} 31. Bc4 {[%emt 0:00:25]} Rb1+ {[%emt 0:01:34]} 32. Kg2 {[%emt 0:00:05]} Bb6 {[%emt 0:00:45]} 33. Rd2 {[%emt 0:01:18]} Ba5 {[%emt 0:03:15]} (33... Rc1 $17) 34. Rf2 {[%emt 0:01:09]} (34. Rc2 $1 $11 {remains equal.}) 34... Bc3 $1 {[%emt 0:00:24] Black continues to play with concentration.} 35. Ref4 {[%emt 0:00:51][%cal Rf4f7] [#]} Rb2 $1 {[%emt 0:00:22]} 36. Rxb2 {[%emt 0:02:10]} Bxb2 {[%emt 0:00:05][%mdl 4096] Endgame KRB-KRB} 37. e6 {[%emt 0:00:17][%cal Re6f7]} fxe6 {[%emt 0:00:23]} 38. Rf2 {[%emt 0:03:04]} Bd4 {[%emt 0:01:15]} 39. Re2 {[%emt 0:00:03]} e5 {[%emt 0:03:11]} 40. Kf3 {[%emt 0:00:04]} c6 {[%emt 0:01:00]} 41. Ke4 {[%emt 0:01:24]} Rb7 {[%emt 0:00:43]} 42. Ra2 {[%emt 0:00:33]} Rb1 {[%emt 0:01:24]} 43. Bd3 {[%emt 0:01:31]} Rb4 {[%emt 0:01:17]} 44. Rc2 {[%emt 0:00:31]} c5 {[%emt 0:01:40]} 45. Kd5 {[%emt 0:00:48]} Ra4 {[%emt 0:00:20] Against Ra2} 46. Rc1 {[%emt 0:00:59]} Be3 {[%emt 0:01:04]} 47. Rc4 {[%emt 0:00:12]} Ra3 {[%emt 0:00:21]} 48. Ke4 {[%emt 0:00:43]} Bg1 {[%emt 0:00:31]} 49. Rc2 {[%emt 0:00:09]} Kf6 {[%emt 0:00:17]} 50. h4 {[%emt 0:01:20]} Ra1 {[%emt 0:01:01]} 51. Kf3 {[%emt 0:01:19]} g5 {[%emt 0:00:59][%cal Bg6g5,Bg5g4][%mdl 32]} 52. Rb2 {[%emt 0:00:29]} (52. hxg5+ $142 Kxg5 53. Ke4) 52... g4+ $19 {[%emt 0:00:34]} 53. Ke2 {[%emt 0:00:15] [#]} Bd4 $1 {[%emt 0:01:00]} 54. Rb6+ {[%emt 0:00:13]} Ke7 {[%emt 0:00:06]} 55. Bc4 {[%emt 0:00:40]} Rg1 {[%emt 0:02:50]} 56. Rb7+ {[%emt 0:00:40]} Kf6 {[%emt 0:00:18]} 57. Rh7 {[%emt 0:00:46]} (57. Rb8 $142 Rg2+ 58. Kd3) 57... Rxg3 {[%emt 0:00:27]} 58. Rxh5 {[%emt 0:00:10]} e4 {[%emt 0:02:00]} 59. Rg5 {[%emt 0:00:35]} Rg2+ {[%emt 0:00:51]} 60. Kf1 {[%emt 0:00:07]} Rg1+ {[%emt 0:00:43]} 61. Ke2 {[%emt 0:00:02]} Rg2+ {[%emt 0:00:46]} 62. Kf1 $1 {[%emt 0:00:04]} Rf2+ {[%emt 0:00:47]} (62... Rc2 $142 63. Be2 Rc1+ 64. Kg2 c4) 63. Ke1 {[%emt 0:00:04]} e3 {[%emt 0:00:19]} (63... Rf4 $142 64. Rg8 Bf2+ 65. Ke2 Ke5) 64. Rxg4 $2 {[%emt 0:00:25]} (64. Be2 $19) 64... Bc3+ {[%emt 0:00:06]} 65. Kd1 {[%emt 0:00:05]} Rd2+ {[%emt 0:00:10]} 66. Kc1 {[%emt 0:00:04]} Bb2+ {[%emt 0:00:13]} 67. Kb1 {[%emt 0:00:04]} e2 {[%emt 0:00:10] Black mates.} 68. Re4 {[%emt 0:00:37]} Rd1+ {[%emt 0:00:13]} 69. Kxb2 {[%emt 0:00:04]} e1=Q {[%emt 0:00:04]} 70. Rxe1 {[%emt 0:00:04]} Rxe1 {[%emt 0:00:01] KR-KB} 71. Kc3 {[%emt 0:02:52]} Rh1 {[%emt 0:00:22]} 72. Bd5 {[%emt 0:00:56]} Rxh4 {[%emt 0:00:09]} 73. Bg8 {[%emt 0:00:27]} Ke5 {[%emt 0:00:05]} 74. Bf7 {[%emt 0:00:08]} Rh1 {[%emt 0:00:34]} 75. Kd3 {[%emt 0:00:48]} Kd6 {[%emt 0:00:34]} 76. Kc3 {[%emt 0:00:24]} Kc6 {[%emt 0:00:31]} 77. Be8+ {[%emt 0:00:32]} Kb6 {[%emt 0:00:05]} 78. Bf7 {[%emt 0:02:29]} Re1 {[%emt 0:00:54]} 79. Kb3 {[%emt 0:00:00]} Re4 {[%emt 0:00:39]} 80. Bg6 {[%emt 0:00:00]} Re3+ {[%emt 0:01:47]} 81. Kc4 {[%emt 0:00:00]} Kc6 {[%emt 0:00:34]} 82. Bh7 {[%emt 0:00:43]} Re1 {[%emt 0:00:12]} 83. Bg6 {[%emt 0:01:15]} Rc1+ {[%emt 0:00:04]} 84. Kd3 {[%emt 0:00:16]} Kb5 {[%emt 0:00:08]} 85. Kd2 {[%emt 0:00:06]} Rg1 {[%emt 0:00:09]} 86. Bf7 {[%emt 0:00:13]} Kb4 {[%emt 0:00:07]} 87. Bd5 {[%emt 0:00:19]} c4 {[%emt 0:00:22]} 88. Kc2 {[%emt 0:00:10]} Rf1 {[%emt 0:00:16]} 89. Be4 {[%emt 0:00:34]} Rf2+ {[%emt 0:00:14] Weighted Error Value: White=0.34/Black=0.05 (flawless)} 0-1

[Event "15th Tashkent Open Agzamov 2022"]
[Site "Tashkent"]
[Date "2022.05.10"]
[Round "9.6"]
[White "Vakhidov, Jakhongir"]
[Black "Vokhidov, Shamsiddin"]
[Result "1-0"]
[ECO "E52"]
[WhiteElo "2552"]
[BlackElo "2536"]
[Annotator "TA"]
[PlyCount "115"]
[EventDate "2022.05.05"]
[EventType "swiss"]
[EventCountry "UZB"]
[SourceTitle "playchess.com"]
[Source "ChessBase"]
[SourceQuality "1"]
[TimeControl "5400+30"]

{[%evp 15,115,-9,13,-12,-6,0,0,0,0,0,0,0,0,0,7,10,45,44,45,45,49,34,54,50,95,42,46,47,35,26,25,20,14,20,33,18,14,15,16,30,37,34,29,41,43,9,8,2,2,12,9,3,9,11,14,0,0,0,87,75,85,77,74,67,70,66,83,104,224,235,200,200,151,71,272,299,275,262,370,370,414,414,638,625,1001,966,1889,1856,29969,29968,29955,980,939,699,5274,5274,5274,5069,1381,1183,1419,579]} 1. d4 {[%emt 0:06:36]} Nf6 {[%emt 0:00:12]} 2. c4 {[%emt 0:00:07]} e6 {[%emt 0:00:05]} 3. Nf3 {[%emt 0:00:06]} d5 {[%emt 0:00:49]} 4. Nc3 {[%emt 0:00:09]} Bb4 {[%emt 0:00:18]} 5. e3 {[%emt 0:00:09]} O-O {[%emt 0:02:02]} 6. Bd2 {[%emt 0:00:06]} b6 {[%emt 0:01:02]} 7. cxd5 {[%emt 0:00:07]} exd5 {[%emt 0:00:03]} 8. Bd3 {[%emt 0:00:10]} Bb7 {[%emt 0:08:12]} 9. Qc2 {[%emt 0:00:09] E52: Nimzo-Indian: Rubinstein: 4...0-0 5 Nf3 d5 6 Bd3 b6.} Re8 {[%emt 0:07:02]} 10. a3 {[%emt 0:00:07]} Bd6 {[%emt 0:16:56]} 11. Nb5 {[%emt 0:00:33] The position is equal.} c5 {[%emt 0:01:54]} 12. Nxd6 {[%emt 0:00:13]} Qxd6 {[%emt 0:00:02]} 13. dxc5 {[%emt 0:00:42]} bxc5 {[%emt 0:00:03]} 14. b4 {[%emt 0:00:29]} Nbd7 {[%emt 0:08:49][%cal Bb8d7,Bd7c5,Bc5e6][%mdl 32] Threatens to win with ...d4.} 15. O-O {[%emt 0:00:11]} Rac8 {[%emt 0:01:56]} 16. bxc5 {[%emt 0:08:15]} Nxc5 {[%emt 0:01:32] [#]} 17. Bf5 $146 {[%emt 0:06:51] A strong pair of Bishops.} ({Predecessor:} 17. Bb4 a5 18. Bxc5 Rxc5 19. Qb2 Ba8 20. Nd4 Rb8 21. Qe2 Ne4 22. Rfc1 h6 23. h3 {1-0 (64) Akobian,V (2600)-Robson,R (2681) Saint Louis 2022}) 17... Ne6 {[%emt 0:00:33]} 18. Qb2 {[%emt 0:00:58]} Rb8 {[%emt 0:04:08]} 19. Bb4 {[%emt 0:04:49]} Qb6 {[%emt 0:03:36][%cal Od5d4]} 20. Rfc1 {[%emt 0:31:20] White is more active.} (20. Rab1 $16) 20... d4 {[%emt 0:10:50]} 21. Nxd4 {[%emt 0:01:00]} a5 $1 {[%emt 0:00:31] And now ...Nxd4 would win.} 22. Bxe6 {[%emt 0:12:27]} fxe6 {[%emt 0:00:10]} 23. Bc3 {[%emt 0:00:01]} Qxb2 {[%emt 0:00:20]} 24. Bxb2 {[%emt 0:00:01]} Bxg2 {[%emt 0:00:13]} 25. Kxg2 {[%emt 0:01:12]} Rxb2 {[%emt 0:00:11]} 26. Rab1 {[%emt 0:00:01]} Ra2 {[%emt 0:05:58]} 27. Rc2 {[%emt 0:14:11]} (27. Rb7 {feels hotter.} Nd5 28. Kg1 h6 29. Rc6) 27... Rxc2 {[%emt 0:04:50]} 28. Nxc2 $11 {[%emt 0:00:02][%mdl 4096] Endgame KRN-KRN} e5 {[%emt 0:05:40]} 29. Ne1 {[%emt 0:03:32]} e4 {[%emt 0:02:21]} 30. Rb5 {[%emt 0:00:01] Prevents Re5.} Rc8 {[%emt 0:00:15] Against Nc2} 31. Rxa5 {[%emt 0:03:22]} Rc1 {[%emt 0:00:29]} 32. Kf1 {[%emt 0:00:02]} Ra1 {[%emt 0:00:34]} 33. h3 {[%emt 0:00:14]} h6 {[%emt 0:05:22]} 34. a4 {[%emt 0:00:58]} Kh7 {[%emt 0:00:40]} 35. Ke2 {[%emt 0:01:32] Nc2 is the strong threat.} Ra2+ {[%emt 0:00:03]} 36. Kd1 {[%emt 0:00:03]} Rxf2 {[%emt 0:00:26]} (36... Nd7 $1 $11 {keeps the balance.}) 37. Nc2 $1 $16 {[%emt 0:00:12]} g5 {[%emt 0:00:31]} 38. Rb5 {[%emt 0:00:33]} g4 {[%emt 0:03:32]} 39. hxg4 {[%emt 0:00:03]} Nxg4 {[%emt 0:00:02]} 40. a5 {[%emt 0:00:15][%cal Ba4a5,Ba5a6,Ba6a7][%mdl 32]} Rf6 {[%emt 0:01:13]} (40... Rf1+ $2 41. Kd2 $18) 41. Kd2 {[%emt 0:01:35]} Kg6 {[%emt 0:00:43]} (41... Rd6+ $16 42. Kc3 Rc6+ 43. Kd2 Rd6+ 44. Nd4 Ra6) 42. Nb4 $1 $18 {[%emt 0:01:07]} Rf1 {[%emt 0:03:18]} 43. a6 {[%emt 0:02:57]} Ra1 {[%emt 0:00:02]} 44. Rb7 {[%emt 0:00:04]} (44. Kc2 $142) 44... Ne5 $2 {[%emt 0:05:02] [#] This move loses the game for Black.} (44... Nf6 $16) 45. a7 $1 {[%emt 0:00:43] Strongly threatening Rb6+.} Kf5 {[%emt 0:00:00] [#]} 46. Kc3 $1 {[%emt 0:02:00] Black must now prevent Nc2.} Ra3+ {[%emt 0:00:00]} (46... Ra4 {was worth a try.} 47. Re7 Ra3+ 48. Kd4 Ng6 49. Rf7+ (49. Rxe4 Rxa7 50. Re8 Ra4 $15) 49... Kg4) 47. Kd4 {[%emt 0:00:35]} Ra5 {[%emt 0:00:00]} 48. Re7 {[%emt 0:01:29][%cal Oe7e5] White wants to mate with Rxe5+!} Nf3+ {[%emt 0:00:00]} (48... Ra4 $142 49. Rxe5+ Kf6) 49. Kc4 {[%emt 0:01:01] Hoping for Nc6.} Kf6 {[%emt 0:00:00]} 50. Nc6 {[%emt 0:00:40]} Ra1 {[%emt 0:00:00]} 51. Re8 {[%emt 0:00:21]} Ne5+ {[%emt 0:00:02]} 52. Rxe5 {[%emt 0:00:33]} Rxa7 {[%emt 0:00:02]} 53. Rxe4 {[%emt 0:01:18] KRN-KR} (53. Nxa7 $142 Kxe5 54. Nc6+ Ke6 55. Nd4+ Ke5 56. Ne2 Kf5 57. Kd5 Kg4 58. Nf4) 53... Ra1 {[%emt 0:00:54] White is clearly winning.} 54. Rf4+ {[%emt 0:00:13]} Kg5 {[%emt 0:00:10]} 55. Nd4 {[%emt 0:00:06]} h5 {[%emt 0:00:15]} 56. Nf3+ {[%emt 0:00:07]} Kg6 {[%emt 0:00:13]} 57. e4 {[%emt 0:00:16]} Kg7 {[%emt 0:00:13]} 58. Kd3 {[%emt 0:00:27] Weighted Error Value: White=0.07 (flawless) /Black=0.48} 1-0

[Event "15th Tashkent Open Agzamov 2022"]
[Site "Tashkent"]
[Date "2022.05.10"]
[Round "9.7"]
[White "Nigmatov, Ortik"]
[Black "Muradli, Mahammad"]
[Result "1-0"]
[ECO "B66"]
[WhiteElo "2463"]
[BlackElo "2539"]
[Annotator "TA"]
[PlyCount "133"]
[EventDate "2022.05.05"]
[EventType "swiss"]
[EventCountry "UZB"]
[SourceTitle "playchess.com"]
[Source "ChessBase"]
[SourceQuality "1"]
[TimeControl "5400+30"]

{[%evp 23,133,35,19,29,24,33,23,0,33,33,0,-14,0,0,16,-8,0,0,43,5,38,20,26,-14,77,73,91,86,151,141,139,148,176,143,136,138,174,180,169,181,180,190,186,183,186,183,184,188,221,239,231,228,220,175,219,222,224,224,224,224,224,224,224,224,218,209,519,558,537,525,518,462,575,494,566,531,635,545,516,572,702,653,624,607,585,551,464,415,539,532,925,907,815,616,518,517,656,633,984,849,1468,1424,927,808,800,793,739,759,1826,1723,1722,1588]} 1. e4 {[%emt 0:02:26]} c5 {[%emt 0:01:07]} 2. Nf3 {[%emt 0:00:21]} d6 {[%emt 0:01:49]} 3. d4 {[%emt 0:00:06]} cxd4 {[%emt 0:00:09]} 4. Nxd4 {[%emt 0:00:04]} Nf6 {[%emt 0:00:12]} 5. Nc3 {[%emt 0:00:05]} Nc6 {[%emt 0:00:09]} 6. Bg5 {[%emt 0:00:07]} e6 {[%emt 0:00:05]} 7. Qd2 {[%emt 0:00:04]} a6 {[%emt 0:00:07]} 8. O-O-O {[%emt 0:00:06]} Bd7 {[%emt 0:00:05]} 9. Nxc6 {[%emt 0:00:05]} Bxc6 {[%emt 0:00:26]} 10. f3 {[%emt 0:00:04]} h6 {[%emt 0:00:32]} 11. Bf4 {[%emt 0:00:17]} d5 {[%emt 0:01:22]} 12. Qe1 {[%emt 0:00:06]} Bb4 {[%emt 0:03:06]} 13. a3 {[%emt 0:00:07] B66: Sicilian: Richter-Rauzer: 7...a6 8 0-0-0 h6.} Bxc3 {[%emt 0:03:37]} 14. Qxc3 {[%emt 0:00:04]} O-O {[%emt 0:01:09]} 15. g4 {[%emt 0:00:06] [#] White has an edge.} Nd7 $146 {[%emt 0:06:00]} ({Predecessor:} 15... Re8 16. Rg1 Rc8 17. g5 Ba4 18. Qd4 Bxc2 19. gxf6 Bxd1+ 20. Kxd1 e5 21. Rxg7+ Kh8 22. Bxe5 dxe4 23. Ke2 Rxe5 24. Qxe5 Qd3+ 25. Kf2 Qxf3+ {½-½ (25) Lea,P (2182)-Johansen,O (2276) ICCF email 2011}) 16. Bd6 {[%emt 0:28:00][%cal Bf4d6,Bd6b4,Bb4e1,Be1g3,Bg3h4][%mdl 32]} Re8 {[%emt 0:01:52]} 17. Bd3 {[%emt 0:02:51]} Rc8 {[%emt 0:10:15]} (17... dxe4 {is interesting.} 18. Bxe4 Bxe4 19. fxe4 Rc8) 18. Qd2 {[%emt 0:03:27]} Nb6 {[%emt 0:13:11]} 19. Bb4 {[%emt 0:01:03]} Qf6 {[%emt 0:11:41]} 20. e5 {[%emt 0:18:27]} Qh4 {[%emt 0:07:26]} (20... Qxf3 $2 21. Rdf1 Qxg4 22. Qf2 $18) (20... Qxe5 $5 {[%cal Rb6a4]} 21. f4 Qf6 $11) 21. Qe2 {[%emt 0:16:10]} d4 {[%emt 0:07:27]} (21... Bb5 $5) 22. Be1 {[%emt 0:02:14] A strong pair of Bishops.} (22. Kb1 $5 {[%cal Rd3e4]}) 22... Qh3 {[%emt 0:05:08]} 23. Bg3 {[%emt 0:00:23]} Red8 {[%emt 0:00:25]} (23... h5 $11) 24. Rhg1 {[%emt 0:04:41]} h5 {[%emt 0:02:28]} 25. Qf2 $1 $36 {[%emt 0:06:44][%mdl 2048] Keeping Black busy.} hxg4 {[%emt 0:06:43]} (25... Bb5 $142) 26. Bh4 $1 $16 {[%emt 0:01:39]} Qxf3 {[%emt 0:01:29] [#]} (26... gxf3 $2 27. Rg3 $1 Qxh4 28. Rxg7+ $3 {[%mdl 512]} Kxg7 29. Qxh4 $18) 27. Qd2 {[%emt 0:03:13]} Be4 {[%emt 0:12:17]} 28. Rg3 {[%emt 0:01:53]} Qf5 {[%emt 0:00:56]} 29. Bxd8 {[%emt 0:00:12]} Bxd3 {[%emt 0:01:21]} 30. Rxd3 {[%emt 0:00:34]} ({Resist} 30. Qxd3 Rxd8 31. Qe2 g6 $16) 30... Rxd8 {[%emt 0:00:01]} 31. Rxd4 {[%emt 0:01:10]} Rxd4 {[%emt 0:00:02]} 32. Qxd4 {[%emt 0:00:08][%mdl 4096] Endgame KQR-KQN} Nd5 {[%emt 0:00:03]} 33. Rg1 {[%emt 0:01:46]} g6 {[%emt 0:01:18]} 34. Rxg4 {[%emt 0:03:57]} Qf1+ {[%emt 0:00:19]} 35. Kd2 {[%emt 0:00:05]} Qh3 {[%emt 0:00:32] [#]} 36. c4 $1 {[%emt 0:00:40]} Ne7 {[%emt 0:01:37]} 37. Rh4 {[%emt 0:01:35]} Qg2+ {[%emt 0:00:01]} 38. Kc1 {[%emt 0:00:09]} Kg7 {[%emt 0:00:46]} 39. Qd2 {[%emt 0:01:10] Qh6+ would kill now.} Qf1+ {[%emt 0:01:05]} 40. Kc2 {[%emt 0:00:06] Threatening mate with Qh6+.} Nf5 {[%emt 0:00:22] Against Qh6+} 41. Rf4 {[%emt 0:00:07]} Qg1 {[%emt 0:00:23]} 42. Kb3 {[%emt 0:00:39]} Qc5 {[%emt 0:00:44]} 43. Re4 {[%emt 0:00:16]} Qc6 {[%emt 0:00:47]} 44. Qd3 {[%emt 0:00:09]} b5 $2 {[%emt 0:00:49]} (44... a5 45. Re2 Qb6+ 46. Ka2 Nd4) 45. cxb5 $18 {[%emt 0:00:13]} axb5 {[%emt 0:00:01]} 46. Ka2 {[%emt 0:01:00]} Ne7 {[%emt 0:00:43]} 47. Rb4 {[%emt 0:00:07]} Qg2 {[%emt 0:00:03]} 48. h3 {[%emt 0:00:35]} Nd5 {[%emt 0:00:58]} 49. Rxb5 {[%emt 0:00:07]} Qh2 {[%emt 0:00:01]} 50. Qd4 {[%emt 0:02:05]} Qxh3 {[%emt 0:00:45]} 51. a4 {[%emt 0:00:24]} g5 {[%emt 0:01:30]} 52. Rb3 {[%emt 0:00:07]} Qf1 {[%emt 0:00:34]} 53. Rg3 {[%emt 0:01:03]} Kh6 {[%emt 0:00:01]} 54. Qg4 {[%emt 0:01:05]} Qc1 {[%emt 0:00:28]} 55. Qe4 {[%emt 0:01:57]} Kg7 {[%emt 0:00:50]} 56. Rg2 {[%emt 0:00:24] White is clearly winning.} Kf8 {[%emt 0:00:31]} 57. Qd4 {[%emt 0:00:07]} Ke7 {[%emt 0:00:39]} 58. Rh2 {[%emt 0:00:28] Qa7+ is the strong threat.} Kf8 {[%emt 0:00:28]} 59. Rf2 {[%emt 0:00:38] Black must now prevent Rg2.} Kg7 {[%emt 0:00:22]} 60. Rg2 {[%emt 0:01:35] aiming for Rg1.} Kf8 {[%emt 0:00:23]} 61. Rg3 {[%emt 0:00:26]} Ke7 {[%emt 0:00:31]} 62. a5 {[%emt 0:00:08]} Qc6 {[%emt 0:00:43]} 63. Qa7+ {[%emt 0:00:56]} Kf8 {[%emt 0:00:11]} 64. Qb8+ {[%emt 0:00:10]} Ke7 {[%emt 0:00:41]} 65. Rg4 {[%emt 0:01:04]} Qc2 {[%emt 0:00:36]} 66. Qb3 {[%emt 0:00:28]} Qc5 {[%emt 0:00:36]} 67. Qa3 {[%emt 0:00:08] Weighted Error Value: White=0.14 (very precise) /Black=0.35} 1-0

[Event "15th Tashkent Open Agzamov 2022"]
[Site "Tashkent"]
[Date "2022.05.10"]
[Round "9.8"]
[White "Aditya Mittal"]
[Black "Urazayev, Arystanbek"]
[Result "1/2-1/2"]
[ECO "E73"]
[WhiteElo "2490"]
[BlackElo "2445"]
[Annotator "TA"]
[PlyCount "72"]
[EventDate "2022.05.05"]
[EventType "swiss"]
[EventCountry "UZB"]
[SourceTitle "playchess.com"]
[Source "ChessBase"]
[SourceQuality "1"]
[TimeControl "5400+30"]

{[%evp 12,72,57,20,33,16,12,18,25,14,14,4,21,0,0,0,7,1,14,-14,0,-12,0,-5,0,0,12,0,18,0,0,0,0,0,0,0,0,-18,-29,-35,-33,-45,-43,-61,-61,-79,-10,-86,-16,-72,-11,-58,-91,-152,-168,-179,-175,-171,-145,-381,-388,-337,-197]} 1. d4 {[%emt 0:00:05]} Nf6 {[%emt 0:02:16]} 2. c4 {[%emt 0:00:02]} g6 {[%emt 0:01:09]} 3. Nc3 {[%emt 0:00:05]} Bg7 {[%emt 0:00:09]} 4. e4 {[%emt 0:00:05]} d6 {[%emt 0:00:03]} 5. Be2 {[%emt 0:00:03]} O-O {[%emt 0:00:08]} 6. Be3 {[%emt 0:00:03]} Nc6 {[%emt 0:00:20]} 7. d5 {[%emt 0:00:06]} Ne5 {[%emt 0:00:05] E73: King's Indian: Averbakh Variation without 6...c5.} 8. h3 {[%emt 0:06:39]} e6 {[%emt 0:00:18]} 9. Nf3 {[%emt 0:00:08]} Nxf3+ {[%emt 0:00:10] The position is equal.} 10. Bxf3 {[%emt 0:00:03]} a5 {[%emt 0:00:12] [#]} 11. Qd2 $146 {[%emt 0:03:07]} ({Predecessor:} 11. O-O Nd7 12. Rc1 e5 13. Be2 Nc5 14. a3 f5 15. exf5 gxf5 16. f4 exf4 17. Bxf4 {½-½ (47) Nesterov,A (2522)-Saric,I (2687) Terme Catez 2022}) 11... exd5 {[%emt 0:03:37]} 12. exd5 {[%emt 0:09:12]} Nd7 {[%emt 0:05:03]} 13. O-O {[%emt 0:01:42]} Nc5 {[%emt 0:00:43]} 14. Rfe1 {[%emt 0:09:08]} Bf5 {[%emt 0:07:38]} 15. g4 {[%emt 0:05:15]} Bd7 {[%emt 0:01:33]} 16. Bg5 {[%emt 0:02:18]} Bf6 {[%emt 0:07:37]} 17. Bf4 {[%emt 0:03:01]} Re8 {[%emt 0:01:44]} 18. Kg2 {[%emt 0:02:14]} Rxe1 {[%emt 0:03:33]} 19. Rxe1 {[%emt 0:00:03]} Qf8 {[%emt 0:01:09]} 20. Nb5 {[%emt 0:11:42]} Bxb5 {[%emt 0:05:03]} 21. cxb5 {[%emt 0:00:13]} b6 {[%emt 0:02:40]} 22. a3 {[%emt 0:16:32]} a4 {[%emt 0:13:39]} 23. Bd1 {[%emt 0:13:56]} Qd8 {[%emt 0:09:16]} 24. g5 {[%emt 0:04:09]} Bg7 {[%emt 0:00:06]} 25. Bg4 {[%emt 0:00:56] Against Qd7} Qf8 {[%emt 0:06:20]} 26. Qe2 {[%emt 0:02:06] Inhibits Re8.} Be5 {[%emt 0:03:00]} 27. Be3 {[%emt 0:01:55]} Qg7 {[%emt 0:02:26]} 28. Rb1 {[%emt 0:00:35]} Kf8 {[%emt 0:04:12]} (28... f5 $17 29. gxf6 Qxf6) 29. Bxc5 {[%emt 0:01:51]} (29. Re1 $11) 29... bxc5 {[%emt 0:00:42]} ({Black should try} 29... dxc5 $17 30. Re1 Bd6) 30. b3 {[%emt 0:00:10]} (30. Bd7 $11) 30... Bf4 {[%emt 0:08:39]} (30... f5 $17 31. gxf6 Qxf6) 31. bxa4 {[%emt 0:00:15]} (31. Bd7 $11) 31... Qd4 {[%emt 0:03:06]} 32. Rd1 {[%emt 0:06:30]} ({Better is} 32. Bd7) 32... Qxa4 $17 {[%emt 0:00:29]} 33. Bd7 {[%emt 0:00:11] [#]} Be5 $1 {[%emt 0:01:41]} ({Stronger than} 33... Bxg5 34. Bc6 Qxa3 35. Rd3 $15) 34. Qf3 {[%emt 0:01:21]} Qxa3 {[%emt 0:00:33]} 35. Rd3 $2 {[%emt 0:01:13]} (35. Re1 $17) 35... Qc1 $19 {[%emt 0:00:19] Hoping for ...Ra1.} 36. Qe3 {[%emt 0:00:51]} Qxe3 {[%emt 0:08:52] Weighted Error Value: White=0.29 (precise) /Black=0.14 (very precise)} (36... Qc2 $142 37. Rd2 Qc4) 1/2-1/2